fUSD/lending_fUSD_20260219
["ID","MTS","AMOUNT","RATE_DAILY","PERIOD"]
[405986673,1771501363109,-152.0,0.000503,120]
[405986674,1771501363138,-2263.78,0.0005041,120]
[405986675,1771501363167,-1037.6,0.00050451,120]
[405986676,1771501363194,-919.33,0.00050472,120]
[405986677,1771501363222,-150.0,0.00050568,30]
[405986678,1771501363250,-1223.24767263,0.00050568,30]
[405986679,1771501363278,-150.0,0.00050568,30]
[405986680,1771501363305,-2095.55864151,0.00050568,30]
[405986681,1771501363331,-150.0,0.00050568,30]
[405986682,1771501363356,-911.74860526,0.00050568,30]
[405986683,1771501363381,-200.0,0.00050577,120]
[405986684,1771501363405,-983.60664652,0.000506,120]
[405986685,1771501363431,-153.0,0.000508,120]
[405986686,1771501363460,-919.33,0.0005088,120]
[405986687,1771501363487,-44177.5443485,0.000509,120]
[405986688,1771501363516,-152.0,0.00051,120]
[405986689,1771501363543,-150.0,0.00051,120]
[405986690,1771501363572,-2690.0,0.00051,120]
[405986691,1771501363600,-1504.0,0.00051,120]
[405986692,1771501363627,-1804.44331517,0.00051,120]
[405986693,1771501363655,-3816.1795368,0.00051,120]
[405986694,1771501363851,-1327.0,0.00051,120]
[405986695,1771501363876,-289.348612,0.00051,120]
[405986696,1771501363902,-1037.6,0.00051207,120]
[405986697,1771501363927,-2546.7525,0.00051232,120]
[405986698,1771501363951,-1009.06128595,0.00051234,120]
[405986699,1771501363976,-919.33,0.00051287,120]
[405986700,1771501364001,-50000.0,0.000515,120]
[405986701,1771501364026,-50000.0,0.000515,120]
[405986702,1771501364050,-153.0,0.000515,120]
[405986703,1771501364075,-5651.93259925,0.000515,120]
[405986704,1771501364099,-20000.0,0.000515,120]
[405986705,1771501364122,-21762.29,0.00051505,120]
[405986706,1771501364146,-20000.0,0.0005151,120]
[405986707,1771501364169,-20000.0,0.00051515,120]
[405986708,1771501364193,-20000.0,0.0005152,120]
[405986709,1771501364217,-20000.0,0.00051525,120]
[405986710,1771501364240,-20000.0,0.0005153,120]
[405986711,1771501364265,-152.0,0.000516,120]
[405986712,1771501364290,-150.0,0.00051616,120]
[405986713,1771501364314,-919.33,0.00051695,120]
[405986714,1771501364338,-850.12326068,0.000518,120]
[405986715,1771501364362,-50000.0,0.000518,120]
[405986716,1771501364386,-5000.0,0.00051855,30]
[405986717,1771501364410,-275.51,0.000519,120]
[405986718,1771501364434,-500.0,0.000519,120]
[405986719,1771501364457,-1076.0778085,0.0005195,120]
[405986720,1771501364481,-2534.58582116,0.00051954,90]
[405986721,1771501364505,-1037.6,0.00051962,120]
[405986722,1771501364528,-1153.1528948,0.0005198,110]
[405986723,1771501364552,-248.71531821,0.00051999,30]
[405986724,1771501364575,-257.91778498,0.00051999,35]
[405986725,1771501364599,-267.46074303,0.00051999,40]
[405986726,1771501364624,-14513.9,0.00052,120]
[405986727,1771501364655,-400.0,0.00052,120]
[405986728,1771501364684,-1000000.0,0.00052,120]
[405986729,1771501364708,-150.0,0.00052,40]
[405986730,1771501364734,-78173.65128239,0.00052,120]
[405986731,1771501419218,-150.0,0.00042173,120]
[405986732,1771501419244,-725.0,0.00043319,30]
[405986733,1771501419272,-156.0,0.00043481,120]
[405986734,1771501419297,-752.0,0.00043514,30]
[405986735,1771501419322,-732.0,0.00043658,30]
[405986736,1771501419360,-752.0,0.00043899,30]
[405986737,1771501419385,-150.0,0.00044281,120]
[405986738,1771501419411,-150.0,0.000444,120]
[405986739,1771501419435,-4196.27899676,0.00044489,120]
[405986740,1771501419474,-240.46,0.00045,30]
[405986741,1771501419504,-150.0,0.00046495,120]
[405986742,1771501419530,-240.46,0.0004725,30]
[405986743,1771501419556,-300.191942,0.00048039,120]
[405986744,1771501419582,-150.0,0.0004882,120]
[405986745,1771501419605,-150.99927332,0.00049551,120]
[405986746,1771501419633,-240.46,0.00049613,30]
[405986747,1771501419662,-500.0,0.00049999,120]
[405986748,1771501419687,-500.0,0.00049999,120]
[405986749,1771501419713,-500.0,0.00049999,120]
[405986750,1771501419739,-630.28032733,0.00049999,120]
[405986751,1771501419776,-600.0,0.0005,120]
[405986752,1771501419801,-433.15995582,0.0005,120]
[405986753,1771501419827,-663.0,0.0005185,120]
[405986754,1771501419851,-1112.0,0.0005185,120]
[405986755,1771501419879,-1587.0,0.0005185,120]
[405986756,1771501419904,-687.58238341,0.0005185,120]
[405986757,1771501419929,-1558.0,0.0005185,120]
[405986758,1771501419953,-1163.50922291,0.0005185,120]
[405986759,1771501419980,-683.0,0.0005185,120]
[405986760,1771501420006,-830.89578101,0.0005185,120]
[405986761,1771501420030,-160.41034689,0.00051999,120]
[405986762,1771501420054,-151.0,0.00051999,120]
[405986763,1771501420080,-156.587,0.00051999,120]
[405986764,1771501420106,-162.380719,0.00051999,120]
[405986765,1771501420134,-168.3888056,0.00051999,120]
[405986766,1771501420159,-174.61919141,0.00051999,120]
[405986767,1771501420183,-1000.0,0.00051999,120]
[405986768,1771501420208,-181.08010149,0.00051999,120]
[405986769,1771501420231,-1000.0,0.00051999,120]
[405986770,1771501420255,-501.53923563,0.00051999,120]
[405986771,1771501420280,-187.78006525,0.00051999,120]
[405986772,1771501420304,-200.0,0.00051999,40]
[405986773,1771501420328,-1000.0,0.00051999,120]
[405986774,1771501420352,-194.72792766,0.00051999,120]
[405986775,1771501420377,-207.4,0.00051999,40]
[405986776,1771501420408,-1000.0,0.00051999,120]
[405986777,1771501420433,-151.0,0.00051999,120]
[405986778,1771501420458,-215.0738,0.00051999,40]
[405986779,1771501420484,-201.93286098,0.00051999,120]
[405986780,1771501420510,-1000.0,0.00051999,120]
[405986781,1771501420535,-156.587,0.00051999,120]
[405986782,1771501420561,-223.0315306,0.00051999,40]
[405986783,1771501420588,-162.380719,0.00051999,120]
[405986784,1771501420613,-231.28369723,0.00051999,40]
[405986785,1771501420643,-1000.0,0.00051999,120]
[405986786,1771501420667,-220.0,0.00051999,120]
[405986787,1771501420919,-168.38880561,0.00051999,120]
[405986788,1771501420946,-1000.0,0.00051999,120]
[405986789,1771501420974,-239.84119403,0.00051999,40]
[405986790,1771501420998,-220.0,0.00051999,120]
[405986791,1771501421023,-151.0,0.00051999,120]
[405986792,1771501421048,-1000.0,0.00051999,120]
[405986793,1771501421073,-220.0,0.00051999,120]
[405986794,1771501421099,-250.0,0.00051999,120]
[405986795,1771501421127,-151.0,0.00051999,120]
[405986796,1771501421155,-1000.0,0.00051999,120]
[405986797,1771501421183,-220.0,0.00051999,120]
[405986798,1771501421210,-250.0,0.00051999,120]
[405986799,1771501421236,-151.0,0.00051999,120]
[405986800,1771501421261,-253.24095906,0.00051999,120]
[405986801,1771501421287,-250.0,0.00051999,120]
[405986802,1771501421311,-151.0,0.00051999,120]
[405986803,1771501421335,-250.0,0.00051999,120]
[405986804,1771501421361,-151.0,0.00051999,120]
[405986805,1771501421386,-256.88247534,0.00051999,120]
[405986806,1771501421414,-151.0,0.00051999,120]
[405986807,1771501421441,-151.0,0.00051999,120]
[405986808,1771501421466,-151.0,0.00051999,120]
[405986809,1771501421490,-151.0,0.00051999,120]
[405986810,1771501421516,-151.0,0.00051999,120]
[405986811,1771501421541,-151.0,0.00051999,120]
[405986812,1771501421567,-151.0,0.00051999,120]
[405986813,1771501421591,-151.0,0.00051999,120]
[405986814,1771501421616,-151.0,0.00051999,120]
[405986815,1771501421640,-151.0,0.00051999,120]
[405986816,1771501421666,-151.0,0.00051999,120]
[405986817,1771501421690,-151.0,0.00051999,120]
[405986818,1771501421716,-151.0,0.00051999,120]
[405986819,1771501421741,-151.0,0.00051999,120]
[405986820,1771501421767,-151.0,0.00051999,120]
[405986821,1771501421791,-150.0,0.00051999,120]
[405986822,1771501421816,-150.0,0.00051999,120]
[405986823,1771501421840,-500.0,0.00051999,120]
[405986824,1771501421867,-500.0,0.00051999,120]
[405986825,1771501421901,-500.0,0.00051999,120]
[405986826,1771501421930,-500.0,0.00051999,120]
[405986827,1771501421955,-500.0,0.00051999,120]
[405986828,1771501421981,-154.49885719,0.00051999,120]
[405986829,1771501422006,-500.0,0.00051999,120]
[405986830,1771501422031,-500.0,0.00051999,120]
[405986831,1771501422055,-500.0,0.00051999,120]
[405986832,1771501422081,-500.0,0.00051999,120]
[405986833,1771501422106,-500.0,0.00051999,120]
[405986834,1771501422130,-153.57378643,0.00051999,120]
[405986835,1771501422159,-921826.34871761,0.00052,120]
[405986836,1771501422183,-150.0,0.00052,120]
[405986837,1771501422207,-564.12247859,0.00052,120]
[405986838,1771501422232,-1823.11111236,0.00052,99]
[405986839,1771501422256,-314.99679095,0.00052,120]
[405986840,1771501422281,-355.42476286,0.00052,120]
[405986841,1771501422305,-1537.73218857,0.00052,120]
[405986842,1771501422333,-1245.97,0.00052,120]
[405986843,1771501422358,-2829.725,0.00052054,120]
[405986844,1771501422383,-1000.0,0.00052054,120]
[405986845,1771501422409,-741.82038425,0.00052054,120]
[405986846,1771501422434,-156.71,0.00052055,120]
[405986847,1771501422459,-1105.0,0.00052055,30]
[405986848,1771501422484,-16464.44065163,0.00052055,120]
[405986849,1771501422510,-240.46,0.00052093,30]
[405986850,1771501422536,-153.0,0.000521,120]
[405986851,1771501422565,-919.33,0.00052103,120]
[405986852,1771501422590,-152.0,0.000523,120]
[405986853,1771501422614,-752.26675639,0.000525,120]
[405986854,1771501422639,-804.7142829,0.000525,120]
[405986855,1771501422666,-919.33,0.00052511,120]
[405986856,1771501422691,-5200.70134,0.00052603,30]
[405986857,1771501422717,-2453.0,0.00052679,120]
[405986858,1771501422742,-919.0,0.00052679,120]
[405986859,1771501422767,-2619.03646115,0.000527,30]
[405986860,1771501422796,-2619.03646115,0.000527,30]
[405986861,1771501422820,-814.11997726,0.000527,120]
[405986862,1771501422844,-1728.89,0.000528,120]
[405986863,1771501422870,-153.0,0.000528,120]
[405986864,1771501422896,-2492.63,0.000528,120]
[405986865,1771501422923,-3112.6975,0.00052876,120]
[405986866,1771501422950,-65835.9332811,0.000529,120]
[405986867,1771501422978,-919.33,0.00052919,120]
[405986868,1771501423005,-20000.0,0.00052999,120]
[405986869,1771501423036,-152.0,0.00053,120]
[405986870,1771501423067,-1000000.0,0.00053,120]
[405986871,1771501423095,-150.0,0.00053,40]
[405986872,1771501423123,-150.0,0.00053,120]
[405986873,1771501423154,-267.10601886,0.00053,120]
[405986874,1771501423183,-165.50320991,0.00053,120]
[405986875,1771501423212,-593.57489332,0.00053,120]
[405986876,1771501423241,-528.0,0.00053,120]
[405986877,1771501423271,-2690.0,0.00053,120]
[405986878,1771501423300,-1500.0,0.00053,120]
[405986879,1771501423328,-1030.0,0.00053,120]
[405986880,1771501423357,-7500.0,0.00053,60]
[405986881,1771501423388,-150.0,0.00053137,120]
[405986882,1771501423418,-511.75122359,0.00053151,60]
[405986883,1771501423448,-535.0488596,0.00053151,60]
[405986884,1771501423486,-500.0,0.00053151,60]
[405986885,1771501423534,-150.0,0.00053292,120]
[405986886,1771501423568,-919.33,0.00053327,120]
[405986887,1771501423599,-153.0,0.000534,120]
[405986888,1771501423634,-1030.2522111,0.00053424,120]
[405986889,1771501423680,-11955.27253562,0.00053468,120]
[405986890,1771501423709,-3395.67,0.00053698,120]
[405986891,1771501423917,-500.0,0.00053699,60]
[405986892,1771501423944,-500.0,0.00053699,30]
[405986893,1771501423971,-500.0,0.00053699,30]
[405986894,1771501423998,-500.0,0.00053699,30]
[405986895,1771501424025,-500.0,0.00053699,30]
[405986896,1771501424049,-500.0,0.00053699,30]
[405986897,1771501424072,-500.0,0.00053699,30]
[405986898,1771501424096,-500.0,0.00053699,30]
[405986899,1771501424120,-312.29531171,0.00053699,30]
[405986900,1771501424143,-152.0,0.000537,120]
[405986901,1771501424168,-919.33,0.00053735,120]
[405986902,1771501424193,-500.0,0.00053795,120]
[405986903,1771501424218,-399.61,0.00053795,120]
[405986904,1771501424243,-4803.12542034,0.000539,120]
[405986905,1771501424268,-541.35998995,0.00053972,120]
[405986906,1771501424292,-1058.53,0.00053973,120]
[405986907,1771501424317,-5000.0,0.00053999,120]
[405986908,1771501424341,-610.11386201,0.00054,120]
[405986909,1771501424384,-400.0,0.00054,120]
[405986910,1771501424414,-1000000.0,0.00054,120]
[405986911,1771501424440,-200.0,0.00054,40]
[405986912,1771501424469,-150.0,0.00054,120]
[405986913,1771501424497,-153.0,0.00054,120]
[405986914,1771501424522,-677.01277427,0.00054,120]
[405986915,1771501424550,-2881.3301893,0.00054,120]
[405986916,1771501424579,-258.40385771,0.00054,120]
[405986917,1771501424607,-4078.0,0.00054,120]
[405986918,1771501424635,-2255.55414396,0.00054,120]
[405986919,1771501424663,-4770.224421,0.00054,120]
[405986920,1771501424693,-606.49735357,0.00054,120]
[405986921,1771501424719,-30000.0,0.00054,120]
[405986922,1771501424748,-16464.44065163,0.00054055,120]
[405986923,1771501424773,-736.56032954,0.000541,120]
[405986924,1771501424802,-919.33,0.00054143,120]
[405986925,1771501424827,-5775304.98763528,0.0005418,120]
[405986926,1771501436055,-151.0,0.0003561,31]
[405986927,1771501436081,-151.0,0.0003561,31]
[405986928,1771501436145,-151.0,0.00040037,120]
[405986929,1771501436169,-151.0,0.00040037,120]
[405986930,1771501436215,-745.0,0.0004449,30]
[405986931,1771501436268,-250.0,0.00049999,120]
[405986932,1771501436296,-8998401.0,0.0005418,120]
[405986933,1771501451877,-744.0,0.0004449,30]
[405986934,1771501451927,-300.191944,0.0005101,120]
[405986935,1771501451953,-500.0,0.00053151,60]
[405986936,1771501451981,-935.07256378,0.00054179,120]
[405986937,1771501452006,-533.21597797,0.00054179,120]
[405986938,1771501452030,-151.0,0.00054179,120]
[405986939,1771501452055,-500.0,0.00054179,120]
[405986940,1771501452080,-200.0,0.00054179,120]
[405986941,1771501452106,-707.92187077,0.00054179,120]
[405986942,1771501452130,-156.587,0.00054179,120]
[405986943,1771501452154,-518.5,0.00054179,120]
[405986944,1771501452178,-200.0,0.00054179,120]
[405986945,1771501452203,-162.380719,0.00054179,120]
[405986946,1771501452229,-537.6845,0.00054179,120]
[405986947,1771501452254,-200.0,0.00054179,120]
[405986948,1771501452278,-168.3888056,0.00054179,120]
[405986949,1771501452301,-557.5788265,0.00054179,120]
[405986950,1771501452325,-200.0,0.00054179,120]
[405986951,1771501452349,-174.61919141,0.00054179,120]
[405986952,1771501452374,-578.20924308,0.00054179,120]
[405986953,1771501452399,-300.54581124,0.00054179,120]
[405986954,1771501452423,-200.0,0.00054179,120]
[405986955,1771501452447,-500.0,0.00054179,120]
[405986956,1771501452472,-181.08010149,0.00054179,120]
[405986957,1771501452497,-599.60298507,0.00054179,120]
[405986958,1771501452522,-200.0,0.00054179,120]
[405986959,1771501452547,-500.0,0.00054179,120]
[405986960,1771501452573,-187.78006525,0.00054179,120]
[405986961,1771501452597,-621.78829552,0.00054179,120]
[405986962,1771501452622,-279.79185827,0.00054179,120]
[405986963,1771501452647,-200.0,0.00054179,120]
[405986964,1771501452686,-500.0,0.00054179,120]
[405986965,1771501452715,-250.0,0.00054179,120]
[405986966,1771501452740,-194.72792766,0.00054179,120]
[405986967,1771501452766,-644.79446246,0.00054179,120]
[405986968,1771501452791,-200.0,0.00054179,120]
[405986969,1771501452815,-500.0,0.00054179,120]
[405986970,1771501452840,-250.0,0.00054179,120]
[405986971,1771501452868,-5279157.70236472,0.0005418,120]
[405986972,1771501452893,-1259.81,0.0005418,120]
[405986973,1771501452920,-500.0,0.00054228,36]
[405986974,1771501452946,-695.39793187,0.00054228,36]
[405986975,1771501452971,-250.0,0.00054228,36]
[405986976,1771501452996,-250.0,0.00054228,36]
[405986977,1771501453020,-250.0,0.00054228,36]
[405986978,1771501453046,-668.65185757,0.00054228,36]
[405986979,1771501453071,-500.0,0.00054247,60]
[405986980,1771501453096,-500.0,0.00054315,120]
[405986981,1771501453120,-670.58624095,0.00054315,120]
[405986982,1771501453146,-250.0,0.00054315,120]
[405986983,1771501453171,-250.0,0.00054315,120]
[405986984,1771501453201,-250.0,0.00054315,120]
[405986985,1771501453228,-644.79446246,0.00054315,120]
[405986986,1771501453253,-500.0,0.00054358,81]
[405986987,1771501453277,-646.65982734,0.00054358,81]
[405986988,1771501453302,-250.0,0.00054358,81]
[405986989,1771501453328,-250.0,0.00054358,81]
[405986990,1771501453354,-250.0,0.00054358,81]
[405986991,1771501453380,-621.78829552,0.00054358,81]
[405986992,1771501453404,-623.58710448,0.00054359,81]
[405986993,1771501453441,-500.0,0.00054359,81]
[405986994,1771501453477,-250.0,0.00054359,81]
[405986995,1771501453506,-250.0,0.00054359,81]
[405986996,1771501453537,-250.0,0.00054359,81]
[405986997,1771501453568,-599.60298507,0.00054359,81]
[405986998,1771501453600,-152.0,0.000544,120]
[405986999,1771501453633,-1312.2007841,0.000544,30]
[405987000,1771501453663,-500.0,0.000544,120]
[405987001,1771501453689,-500.0,0.000544,120]
[405987002,1771501453720,-500.0,0.000544,120]
[405987003,1771501453750,-500.0,0.000544,120]
[405987004,1771501453779,-500.0,0.000544,120]
[405987005,1771501453811,-150.0,0.00054414,120]
[405987006,1771501453842,-895.02,0.0005444,120]
[405987007,1771501453873,-554.88780562,0.000545,120]
[405987008,1771501453903,-1600.39445005,0.000545,120]
[405987009,1771501453935,-3678.6425,0.0005452,120]
[405987010,1771501453969,-919.33,0.00054551,120]
[405987011,1771501453998,-10034.61374298,0.000546,120]
[405987012,1771501454028,-236.71241999,0.00054652,120]
[405987013,1771501454061,-2053.79525783,0.00054665,120]
[405987014,1771501454091,-235.79236098,0.00054678,120]
[405987015,1771501454120,-1921.7706674,0.0005468,120]
[405987016,1771501454146,-1602.23367166,0.00054681,120]
[405987017,1771501454174,-32128.37860414,0.0005469,60]
[405987018,1771501454206,-1946.0,0.00054695,30]
[405987019,1771501454232,-235.4,0.000547,40]
[405987020,1771501454259,-153.0,0.000547,120]
[405987021,1771501454286,-160.5,0.000547,120]
[405987022,1771501454315,-500.0,0.00054776,90]
[405987023,1771501454342,-601.3376128,0.00054776,90]
[405987024,1771501454368,-151.0,0.00054776,90]
[405987025,1771501454396,-250.0,0.00054776,90]
[405987026,1771501454424,-250.0,0.00054776,90]
[405987027,1771501454456,-250.0,0.00054776,90]
[405987028,1771501454486,-578.20924308,0.00054776,90]
[405987029,1771501454514,-500.0,0.00054777,90]
[405987030,1771501454542,-579.88197956,0.00054777,90]
[405987031,1771501454572,-151.0,0.00054777,90]
[405987032,1771501454602,-250.0,0.00054777,90]
[405987033,1771501454630,-250.0,0.00054777,90]
[405987034,1771501454660,-250.0,0.00054777,90]
[405987035,1771501454690,-557.5788265,0.00054777,90]
[405987036,1771501454720,-5000.0,0.00054794,120]
[405987037,1771501454750,-500.0,0.00054794,120]
[405987038,1771501454778,-500.0,0.00054794,120]
[405987039,1771501454806,-181.8831416,0.00054794,120]
[405987040,1771501454832,-500.0,0.00054794,30]
[405987041,1771501454859,-151.0,0.00054794,30]
[405987042,1771501454891,-520.0,0.00054794,30]
[405987043,1771501454920,-151.0,0.00054794,30]
[405987044,1771501454948,-500.0,0.00054794,60]
[405987045,1771501454976,-156.587,0.00054794,60]
[405987046,1771501455006,-539.24,0.00054794,60]
[405987047,1771501455036,-151.0,0.00054794,60]
[405987048,1771501455067,-500.0,0.00054794,120]
[405987049,1771501455095,-559.19188,0.00054794,120]
[405987050,1771501455119,-151.0,0.00054794,120]
[405987051,1771501455145,-250.0,0.00054794,30]
[405987052,1771501455170,-250.0,0.00054794,60]
[405987053,1771501455195,-250.0,0.00054794,120]
[405987054,1771501455220,-1000.0,0.00054794,30]
[405987055,1771501455244,-1000.0,0.00054794,60]
[405987056,1771501455269,-250.0,0.00054794,30]
[405987057,1771501455295,-250.0,0.00054794,60]
[405987058,1771501455320,-250.0,0.00054794,120]
[405987059,1771501455345,-350.0,0.00054794,30]
[405987060,1771501455370,-287.24263412,0.00054794,60]
[405987061,1771501455395,-250.0,0.00054794,30]
[405987062,1771501455420,-250.0,0.00054794,60]
[405987063,1771501455446,-250.0,0.00054794,120]
[405987064,1771501455711,-500.0,0.00054794,30]
[405987065,1771501455737,-500.0,0.00054794,60]
[405987066,1771501455762,-260.9603024,0.00054794,120]
[405987067,1771501455788,-500.0,0.00054794,30]
[405987068,1771501455814,-518.5,0.00054794,60]
[405987069,1771501455840,-537.6845,0.00054794,120]
[405987070,1771501455866,-195.1643613,0.00054794,120]
[405987071,1771501455890,-10000.0,0.00054795,30]
[405987072,1771501455917,-150.0,0.00054795,120]
[405987073,1771501455942,-150.11201423,0.00054795,120]
[405987074,1771501455968,-150.0,0.00054795,120]
[405987075,1771501455992,-150.0,0.00054795,120]
[405987076,1771501456016,-150.15867985,0.00054795,120]
[405987077,1771501456040,-150.0,0.00054795,120]
[405987078,1771501456064,-150.0,0.00054795,120]
[405987079,1771501456090,-150.4933093,0.00054795,120]
[405987080,1771501456114,-150.0,0.00054795,120]
[405987081,1771501456139,-150.0,0.00054795,120]
[405987082,1771501456165,-150.0,0.00054795,120]
[405987083,1771501456191,-150.45581773,0.00054795,120]
[405987084,1771501456216,-150.0,0.00054795,120]
[405987085,1771501456241,-150.0,0.00054795,120]
[405987086,1771501456267,-150.0,0.00054795,120]
[405987087,1771501456291,-150.51177937,0.00054795,120]
[405987088,1771501456318,-150.0,0.00054795,120]
[405987089,1771501456343,-1500.0,0.00054795,30]
[405987090,1771501456369,-198.108,0.00054795,30]
[405987091,1771501456396,-256.24152244,0.00054795,30]
[405987092,1771501456428,201.93286098,0.00054179,120]
[405987093,1771501456457,517.96659166,0.00054179,120]
[405987094,1771501456502,500.0,0.00054179,120]
[405987095,1771501456533,200.0,0.00054179,120]
[405987096,1771501456564,250.0,0.00054179,120]
[405987097,1771501456612,500.0,0.00054179,120]
[405987098,1771501456752,250.0,0.00054179,120]
[405987099,1771501456781,500.0,0.00054179,120]
[405987100,1771501456812,250.0,0.00054179,120]
[405987101,1771501456842,508.0,0.0001612,31]
[405987102,1771501456879,508.0,0.00025246,35]
[405987103,1771501456912,500.0,0.00054179,120]
[405987104,1771501457083,500.0,0.00054179,120]
[405987105,1771501457112,250.0,0.00054179,120]
[405987106,1771501457142,508.0,0.00034371,39]
[405987107,1771501457175,1000.0,0.00054179,120]
[405987108,1771501457208,508.0,0.00043497,43]
[405987109,1771501457237,151.0,0.00054179,120]
[405987110,1771501457273,500.0,0.00054179,120]
[405987111,1771501457302,508.0,0.00052623,47]
[405987112,1771501457331,500.0,0.00054179,120]
[405987113,1771501457360,250.0,0.00054179,120]
[405987114,1771501457389,1000.0,0.00054179,120]
[405987115,1771501457427,151.0,0.00054179,120]
[405987116,1771501457462,500.0,0.00054179,120]
[405987117,1771501457492,500.0,0.00054179,120]
[405987118,1771501457522,254.63035939,0.00054179,120]
[405987119,1771501457555,1000.0,0.00054179,120]
[405987120,1771501457585,151.0,0.00054179,120]
[405987121,1771501457616,500.0,0.00054179,120]
[405987122,1771501457647,500.0,0.00054179,120]
[405987123,1771501457680,1000.0,0.00054179,120]
[405987124,1771501457711,151.0,0.00054179,120]
[405987125,1771501457740,500.0,0.00054179,120]
[405987126,1771501457770,500.0,0.00054179,120]
[405987127,1771501457799,1000.0,0.00054179,120]
[405987128,1771501457829,151.0,0.00054179,120]
[405987129,1771501457860,500.0,0.00054179,120]
[405987130,1771501457892,1500.0,0.00054795,30]
[405987131,1771501457924,500.0,0.00054179,120]
[405987132,1771501457956,10000.0,0.00054795,30]
[405987133,1771501457986,1000.0,0.00054179,120]
[405987134,1771501458022,151.0,0.00054179,120]
[405987135,1771501458051,1500.0,0.00054795,30]
[405987136,1771501458080,730.0,0.0004449,30]
[405987137,1771501458109,500.0,0.00054179,120]
[405987138,1771501458137,500.0,0.00054179,120]
[405987139,1771501458166,1000.0,0.00054179,120]
[405987140,1771501458196,1133.83,0.00054795,120]
[405987141,1771501458339,151.0,0.00054179,120]
[405987142,1771501458377,500.0,0.00054179,120]
[405987143,1771501458407,500.0,0.00054179,120]
[405987144,1771501458448,1000.0,0.00054179,120]
[405987145,1771501458479,520.0,0.00054179,120]
[405987146,1771501458581,500.0,0.00054179,120]
[405987147,1771501458613,151.0,0.00054179,120]
[405987148,1771501458715,269.44117479,0.0005453,120]
[405987149,1771501458790,500.0,0.00054179,120]
[405987150,1771501458900,1000.0,0.00054179,120]
[405987151,1771501459008,539.24,0.00054179,120]
[405987152,1771501459183,500.0,0.00054179,120]
[405987153,1771501459215,151.0,0.00054179,120]
[405987154,1771501459477,500.0,0.00054179,120]
[405987155,1771501459539,1000.0,0.00054179,120]
[405987156,1771501459639,559.19188,0.00054179,120]
[405987157,1771501459786,500.0,0.00054179,120]
[405987158,1771501459816,151.0,0.00054179,120]
[405987159,1771501460088,500.0,0.00054179,120]
[405987160,1771501460155,1000.0,0.00054179,120]
[405987161,1771501460403,500.0,0.00054179,120]
[405987162,1771501460435,579.88197956,0.00054179,120]
[405987163,1771501460465,151.0,0.00054179,120]
[405987164,1771501460703,500.0,0.00054179,120]
[405987165,1771501460846,1000.0,0.00054179,120]
[405987166,1771501461065,500.0,0.00054179,120]
[405987167,1771501461097,601.3376128,0.00054179,120]
[405987168,1771501461383,500.0,0.00054179,120]
[405987169,1771501461460,1000.0,0.00054179,120]
[405987170,1771501461523,151.0,0.00054179,120]
[405987171,1771501461631,500.0,0.00054179,120]
[405987172,1771501461662,623.58710448,0.00054179,120]